bitfinex/quotes_BTCUSD_20250826
["timestamp","ask_amount","ask_price","bid_price","bid_amount"]
[1756173449959,0.89514368,110060.0,110050.0,0.24888902]
[1756173450383,0.89514368,110060.0,110050.0,0.25188902]
[1756173451014,0.53403363,110060.0,110050.0,0.25188902]
[1756173451212,0.88664274,110060.0,110050.0,0.27707792]
[1756173451469,0.8951498,110060.0,110050.0,0.003]
[1756173451848,0.37571864,110060.0,110050.0,0.16452]
[1756173452265,0.91854775,110060.0,110050.0,0.003]
[1756173452468,0.91854775,110060.0,110050.0,0.16452]
[1756173452844,0.92054775,110060.0,110050.0,0.16152]
[1756173453068,0.73882869,110060.0,110050.0,0.16152]
[1756173453283,0.37771864,110060.0,110050.0,0.16152]
[1756173453890,0.37134459,110060.0,110050.0,0.16152]
[1756173454202,0.35432395,110060.0,110050.0,0.16252]
[1756173454839,0.34414363,110060.0,110050.0,0.2605677]
[1756173455041,0.34414363,110060.0,110050.0,0.44003158]
[1756173455242,0.34214363,110060.0,110050.0,0.44003158]
[1756173455622,0.00214363,110060.0,110050.0,0.86312011]
[1756173455838,0.00214363,110060.0,110050.0,0.9545654]
[1756173456202,0.00214363,110060.0,110050.0,0.9818924]
[1756173456448,0.00214363,110060.0,110050.0,0.55880387]
[1756173456605,0.00214363,110060.0,110050.0,0.9818924]
[1756173456822,0.00014363,110060.0,110050.0,1.07235442]
[1756173457269,0.00114363,110060.0,110050.0,1.07235442]
[1756173457733,0.00014363,110060.0,110050.0,1.07235442]
[1756173458049,0.00014363,110060.0,110050.0,1.07535442]
[1756173458255,0.00014363,110060.0,110050.0,1.07635442]
[1756173458456,0.00014363,110060.0,110050.0,0.91483442]
[1756173458666,0.00014363,110060.0,110050.0,1.07627442]
[1756173460974,0.00014363,110060.0,110050.0,1.34497442]
[1756173461118,0.00014363,110060.0,110050.0,1.22627442]
[1756173461547,0.00014363,110060.0,110050.0,0.91483442]
[1756173461775,0.00014363,110060.0,110050.0,1.07619442]
[1756173463013,0.00014363,110060.0,110050.0,1.00289743]
[1756173463208,0.00014363,110060.0,110050.0,0.4184489]
[1756173463419,0.00014363,110060.0,110050.0,1.00285743]
[1756173464044,0.00014363,110060.0,110050.0,0.99381743]
[1756173464311,0.00014363,110060.0,110050.0,0.98540841]
[1756173464880,0.00014363,110060.0,110050.0,0.82408841]
[1756173465080,0.00014363,110060.0,110050.0,0.98540841]
[1756173466122,0.00014363,110060.0,110050.0,1.00281743]
[1756173467667,0.00014363,110060.0,110050.0,0.75007541]
[1756173467873,0.00212363,110060.0,110050.0,0.48822688]
[1756173468818,0.00014363,110060.0,110050.0,0.48822688]
[1756173469383,0.00014363,110060.0,110050.0,0.91131541]
[1756173469802,0.00014363,110060.0,110050.0,0.75007541]
[1756173470037,0.00212363,110060.0,110050.0,0.48315688]
[1756173470240,0.00212363,110060.0,110050.0,0.45582988]
[1756173470687,0.00212363,110060.0,110050.0,0.46085988]
[1756173470889,0.00212363,110060.0,110050.0,0.45785988]
[1756173471083,0.00212363,110060.0,110050.0,0.45685988]
[1756173471290,0.00212363,110060.0,110050.0,0.45785988]
[1756173472349,0.00014363,110060.0,110050.0,0.29665988]
[1756173472545,0.00014363,110060.0,110050.0,0.45781988]
[1756173473215,0.00212363,110060.0,110050.0,0.27105431]
[1756173473338,0.00212363,110060.0,110050.0,0.17960902]
[1756173473546,0.00212363,110060.0,110050.0,0.01844902]
[1756173473782,0.00381363,110060.0,110050.0,0.17960902]
[1756173473979,0.00212363,110060.0,110050.0,0.17960902]
[1756173474181,0.00212363,110060.0,110050.0,0.17956902]
[1756173474403,0.00212363,110060.0,110050.0,0.22273162]
[1756173474609,0.00212363,110060.0,110050.0,0.40446719]
[1756173474845,0.00312363,110060.0,110050.0,0.40346719]
[1756173475250,0.00312363,110060.0,110050.0,0.40650719]
[1756173475424,0.00312363,110060.0,110050.0,0.40849719]
[1756173476549,0.00312363,110060.0,110050.0,0.22173162]
[1756173477805,0.00212363,110060.0,110050.0,0.22173162]
[1756173478143,0.00312363,110060.0,110050.0,0.22173162]
[1756173479894,0.00114363,110060.0,110050.0,0.40865719]
[1756173480712,0.00114363,110060.0,110050.0,0.76962604]
[1756173480949,0.00114363,110060.0,110050.0,0.84292303]
[1756173481189,0.00114363,110060.0,110050.0,0.48195418]
[1756173481383,0.00114363,110060.0,110050.0,0.68180303]
[1756173481585,0.00330363,110060.0,110050.0,0.48187418]
[1756173481794,0.00230363,110060.0,110050.0,0.43871158]
[1756173482207,0.00014363,110060.0,110050.0,0.43871158]
[1756173482413,0.00014363,110060.0,110050.0,0.43971158]
[1756173482849,0.00014363,110060.0,110050.0,0.53115687]
[1756173483273,0.00014363,110060.0,110050.0,0.89212572]
[1756173483694,0.00014363,110060.0,110050.0,0.53115687]
[1756173484057,0.00014363,110060.0,110050.0,0.89212572]
[1756173484594,0.00014363,110060.0,110050.0,0.55848387]
[1756173484922,0.00014363,110060.0,110050.0,0.91945272]
[1756173485160,0.00014363,110060.0,110050.0,0.75841272]
[1756173485364,0.00014363,110060.0,110050.0,0.91941272]
[1756173485782,0.00014363,110060.0,110050.0,0.48514688]
[1756173486573,0.00014363,110060.0,110050.0,0.84611573]
[1756173487349,0.00014363,110060.0,110050.0,0.48514688]
[1756173490148,0.00014363,110060.0,110050.0,0.55502688]
[1756173490762,0.87178191,110090.0,110060.0,0.1817181]
[1756173490977,0.18168604,110080.0,110070.0,0.17832902]
[1756173491183,0.18337604,110080.0,110070.0,0.17832902]
[1756173491382,0.18535604,110080.0,110070.0,0.17832902]
[1756173491922,0.22317344,110080.0,110070.0,0.17832902]
[1756173492758,0.56317344,110080.0,110070.0,0.17832902]
[1756173493552,0.934666,110080.0,110070.0,0.17832902]
[1756173494370,0.936666,110080.0,110070.0,0.17832902]
[1756173494569,0.936666,110080.0,110070.0,0.01744902]
[1756173494773,0.936666,110080.0,110070.0,0.17828902]
[1756173495581,0.34,110060.0,110050.0,0.2826083]
[1756173495786,0.34,110060.0,110050.0,0.4181013]
[1756173497257,0.34,110060.0,110050.0,0.4191013]
[1756173499015,0.34216,110060.0,110050.0,0.4139113]
[1756173499215,0.34216,110060.0,110050.0,0.4191013]
[1756173499441,0.34216,110060.0,110050.0,0.32246601]
[1756173500415,0.34216,110060.0,110050.0,0.32567601]
[1756173500828,0.34216,110060.0,110050.0,0.16681601]
[1756173501036,0.34216,110060.0,110050.0,0.32555601]
[1756173501478,0.34216,110060.0,110050.0,0.32234601]
[1756173501695,0.34216,110060.0,110050.0,0.38142808]
[1756173502510,0.34216,110060.0,110050.0,0.38463808]
[1756173502915,0.34216,110060.0,110050.0,0.32555601]
[1756173503113,0.34216,110060.0,110050.0,0.32653601]
[1756173503501,0.34416,110060.0,110050.0,0.32653601]
[1756173503896,0.34416,110060.0,110050.0,0.32455601]
[1756173504166,0.34416,110060.0,110050.0,0.32134601]
[1756173504380,0.34416,110060.0,110050.0,0.40054772]
[1756173504589,0.34416,110060.0,110050.0,0.40375772]
[1756173505247,0.34416,110060.0,110050.0,0.40054772]
[1756173505545,0.70512885,110060.0,110050.0,0.24804902]
[1756173506235,0.34416,110060.0,110050.0,0.24804902]
[1756173507851,0.34416,110060.0,110050.0,0.25017902]
[1756173508064,0.34416,110060.0,110050.0,0.25328902]
[1756173509362,0.342,110060.0,110050.0,0.25328902]
[1756173509575,0.342,110060.0,110050.0,0.31863706]
[1756173511805,0.342,110060.0,110050.0,0.31847706]
[1756173512015,0.002,110060.0,110050.0,0.31847706]
[1756173512939,0.002,110060.0,110050.0,0.25312902]
[1756173515544,0.002,110060.0,110050.0,0.43486459]
[1756173515753,0.002,110060.0,110050.0,0.50816158]
[1756173516771,0.002,110060.0,110050.0,0.86913043]
[1756173517136,0.21158187,110080.0,110070.0,0.01744902]
[1756173517344,0.23715028,110080.0,110070.0,0.19784573]
[1756173517561,0.23715028,110080.0,110070.0,0.20308573]
[1756173517987,0.04467614,110080.0,110070.0,0.20308573]
[1756173518200,0.03615334,110080.0,110070.0,0.27296573]
[1756173518624,0.18166955,110090.0,110070.0,0.27296573]
[1756173518857,0.03648208,110080.0,110070.0,0.27296573]
[1756173519087,0.37195792,110090.0,110070.0,0.27296573]
[1756173519296,0.72653519,110090.0,110070.0,0.27296573]
[1756173519502,0.001,110080.0,110070.0,0.26985573]
[1756173519710,0.88263947,110090.0,110070.0,0.26985573]
[1756173519938,0.36556432,110090.0,110080.0,0.00311]
[1756173520163,0.54918386,110090.0,110080.0,0.00311]
[1756173520443,0.89310983,110090.0,110080.0,0.00524]
[1756173520659,0.93006122,110090.0,110070.0,0.26983573]
[1756173520869,0.93106122,110090.0,110070.0,0.26983573]
[1756173521501,0.88265489,110080.0,110070.0,0.08632902]
[1756173521710,0.88460489,110080.0,110070.0,0.24672902]
[1756173521841,0.18170255,110070.0,110060.0,0.027325]
[1756173522048,0.5446214,110070.0,110060.0,0.1604]
[1756173522249,0.5446214,110070.0,110060.0,0.17317116]
[1756173522640,0.5446214,110070.0,110060.0,0.19062018]
[1756173523040,0.18365255,110070.0,110060.0,0.19062018]
[1756173523357,0.18365255,110070.0,110060.0,0.19586018]
[1756173523555,0.18365255,110070.0,110060.0,0.19686018]
[1756173523735,0.18365255,110070.0,110060.0,0.19158018]
[1756173524140,0.18365255,110070.0,110060.0,0.19143506]
[1756173525052,0.36291885,110070.0,110060.0,0.19667506]
[1756173525208,0.88265489,110080.0,110060.0,0.19667506]
[1756173525475,0.89117694,110080.0,110060.0,0.19667506]
[1756173525883,0.53020809,110080.0,110070.0,0.00311]
[1756173526098,0.89312694,110080.0,110070.0,0.00311]
[1756173527378,0.35047205,110080.0,110070.0,0.00524]
[1756173528014,0.53315809,110080.0,110070.0,0.00524]
[1756173528245,0.53315809,110080.0,110070.0,0.00311]
[1756173528447,0.53315809,110080.0,110070.0,0.00524]
[1756173528618,0.53215756,110080.0,110070.0,0.00524]
[1756173529064,0.53315756,110080.0,110070.0,0.00524]
[1756173529520,0.53120756,110080.0,110070.0,0.00524]
[1756173529734,0.341,110080.0,110070.0,0.09825729]
[1756173529941,0.341,110080.0,110070.0,0.17965032]
[1756173530159,0.341,110080.0,110070.0,0.17737904]
[1756173530642,0.341,110080.0,110070.0,0.25622601]
[1756173530867,0.34005,110080.0,110070.0,0.28354901]
[1756173531085,0.34,110080.0,110070.0,0.28354901]
[1756173531300,0.34,110080.0,110070.0,0.28654901]
[1756173532144,0.34,110080.0,110070.0,0.28754901]
[1756173532427,0.34,110080.0,110070.0,0.33573827]
[1756173533738,0.34,110080.0,110070.0,0.32665827]
[1756173533920,0.34195,110080.0,110070.0,0.32878827]
[1756173534271,0.34,110080.0,110070.0,0.32878827]
[1756173535620,0.34206,110080.0,110070.0,0.32874827]
[1756173536010,0.34,110080.0,110070.0,0.33179827]
[1756173536189,0.34,110080.0,110070.0,0.30447527]
[1756173537218,0.34,110080.0,110070.0,0.48617782]
[1756173537503,0.34,110080.0,110070.0,0.30447527]
[1756173539414,0.34,110080.0,110070.0,0.14427527]
[1756173539711,0.34,110080.0,110070.0,0.30443527]
[1756173540347,0.34,110080.0,110070.0,0.84710667]
[1756173541005,0.34,110080.0,110070.0,0.87442967]
[1756173541184,0.34,110080.0,110070.0,0.51346082]
[1756173542008,0.34206,110080.0,110070.0,0.25925128]
[1756173542213,0.34,110080.0,110070.0,0.26230128]
[1756173542415,0.34,110080.0,110070.0,0.44400383]
[1756173542822,0.34,110080.0,110070.0,0.26230128]
[1756173543931,0.34,110080.0,110070.0,0.44400383]
[1756173544775,0.34,110080.0,110070.0,0.26226128]
[1756173549946,0.34,110080.0,110070.0,0.26222128]
[1756173550349,0.34206,110080.0,110070.0,0.25917128]
[1756173550563,0.34206,110080.0,110070.0,0.26222128]
[1756173551635,0.34,110080.0,110070.0,0.26222128]
[1756173552347,0.34206,110080.0,110070.0,0.25917128]
[1756173552532,0.34206,110080.0,110070.0,0.26222128]
[1756173552972,0.34206,110080.0,110070.0,0.33210128]
[1756173553234,0.34206,110080.0,110070.0,0.16684128]
[1756173553452,0.34504,110080.0,110070.0,0.32688128]
[1756173553884,0.34504,110080.0,110070.0,0.32901128]
[1756173554734,0.34504,110080.0,110070.0,0.32688128]
[1756173554960,0.52672604,110080.0,110070.0,0.11865202]
[1756173555181,0.88769489,110080.0,110070.0,0.11865202]
[1756173555474,0.88769489,110080.0,110070.0,0.27869202]
[1756173555715,0.88769489,110080.0,110070.0,0.25136902]
[1756173555928,0.34504,110080.0,110070.0,0.25136902]
[1756173556148,0.34504,110080.0,110070.0,0.29624532]
[1756173556805,0.34504,110080.0,110070.0,0.29837532]
[1756173557027,0.34504,110080.0,110070.0,0.29624532]
[1756173557457,0.34504,110080.0,110070.0,0.13620532]
[1756173557672,0.34504,110080.0,110070.0,0.29620532]
[1756173559042,0.34206,110080.0,110070.0,0.29620532]
[1756173559274,0.34504,110080.0,110070.0,0.29620532]
[1756173559491,0.34504,110080.0,110070.0,0.29220532]
[1756173559717,0.34504,110080.0,110070.0,0.29433532]
[1756173559935,0.34504,110080.0,110070.0,0.29220532]
[1756173560153,0.34504,110080.0,110070.0,0.29420532]
[1756173560701,0.34504,110080.0,110070.0,0.29520532]
[1756173562683,0.34504,110080.0,110070.0,0.29420532]
[1756173563109,0.34504,110080.0,110070.0,0.29633532]
[1756173563347,0.34504,110080.0,110070.0,0.29433532]
[1756173563583,0.34206,110080.0,110070.0,0.47603787]
[1756173563811,0.34206,110080.0,110070.0,0.47703787]
[1756173564483,0.34206,110080.0,110070.0,0.47903787]
[1756173565402,0.34206,110080.0,110070.0,0.29733532]
[1756173565874,0.34206,110080.0,110070.0,0.06745532]
[1756173566367,0.34206,110080.0,110070.0,0.18153902]
[1756173566603,0.0002,110100.0,110090.0,0.1]
[1756173566831,0.036845,110130.0,110120.0,0.19906907]
[1756173567052,0.036845,110130.0,110120.0,0.26894907]
[1756173567266,0.03698868,110130.0,110120.0,0.43098907]
[1756173567918,0.03698868,110130.0,110120.0,0.45829707]
[1756173568136,0.03698868,110130.0,110120.0,0.51226747]
[1756173568353,0.04220868,110130.0,110120.0,0.35230747]
[1756173568571,0.04220868,110130.0,110120.0,0.51222747]
[1756173568793,0.03900868,110130.0,110120.0,0.51422747]
[1756173568998,0.03698868,110130.0,110120.0,0.51422747]
[1756173569850,0.03698868,110130.0,110120.0,0.35430747]
[1756173570069,0.03900868,110130.0,110120.0,0.51422747]
[1756173570278,0.03698868,110130.0,110120.0,0.51422747]
[1756173570700,0.04220868,110130.0,110120.0,0.35430747]
[1756173570900,0.04220868,110130.0,110120.0,0.099188]
[1756173571134,0.04220868,110130.0,110120.0,0.24858071]
[1756173571799,0.04220868,110130.0,110120.0,0.26602973]
[1756173573075,0.04220868,110130.0,110120.0,0.24920902]
[1756173573682,0.22381223,110130.0,110120.0,0.24920902]
[1756173574158,0.92478108,110130.0,110120.0,0.16184]
[1756173574391,1.08462108,110130.0,110120.0,0.002]
[1756173574610,0.92478108,110130.0,110120.0,0.002]
[1756173574846,0.95209808,110130.0,110120.0,0.002]
[1756173575062,0.95203233,110130.0,110120.0,0.002]
[1756173575280,0.18162005,110120.0,110110.0,0.17728902]
[1756173575515,0.5478089,110120.0,110110.0,0.17728902]
[1756173575722,0.18684005,110120.0,110110.0,0.17728902]
[1756173575964,0.5478089,110120.0,110110.0,0.17728902]
[1756173576191,0.5478089,110120.0,110110.0,0.20200192]
[1756173576629,0.5478089,110120.0,110110.0,0.17728902]
[1756173577094,0.74568348,110130.0,110120.0,0.18162005]
[1756173577095,0.06423993,110130.0,110120.0,0.18162005]
[1756173577314,0.03692293,110130.0,110120.0,0.5446689]
[1756173577525,0.03692293,110130.0,110120.0,0.61408534]
[1756173577724,0.03792293,110130.0,110120.0,0.64139534]
[1756173578317,0.03692293,110130.0,110120.0,0.80119534]
[1756173578773,0.03692293,110130.0,110120.0,0.80219534]
[1756173579400,0.03692293,110130.0,110120.0,0.86361713]
[1756173579813,0.03692293,110130.0,110120.0,0.86561713]
[1756173580833,0.03692293,110130.0,110120.0,0.44040649]
[1756173581041,0.03692293,110130.0,110120.0,0.86561713]
[1756173581251,0.20339072,110140.0,110130.0,0.19905257]
[1756173581453,0.20339072,110140.0,110130.0,0.36241786]
[1756173581681,0.20541072,110140.0,110130.0,0.36241786]
[1756173582496,0.20339072,110140.0,110130.0,0.36341786]
[1756173583175,0.24114732,110140.0,110130.0,0.36341786]
[1756173584594,0.24316732,110140.0,110130.0,0.36341786]
[1756173584949,0.24636732,110140.0,110130.0,0.36341786]
[1756173585973,0.24316732,110140.0,110130.0,0.36341786]
[1756173586176,0.24636732,110140.0,110130.0,0.36341786]
[1756173586387,0.24636732,110140.0,110130.0,0.15972]
[1756173587470,0.24636732,110140.0,110120.0,0.27876838]
[1756173587642,0.24316732,110140.0,110130.0,0.15972]
[1756173588315,0.24636732,110140.0,110120.0,0.27876838]
[1756173588518,0.24316732,110140.0,110130.0,0.17716902]
[1756173589175,0.24636732,110140.0,110130.0,0.17716902]
[1756173591128,0.42795439,110140.0,110130.0,0.01744902]
[1756173591341,0.53068372,110130.0,110120.0,0.15968]
[1756173591557,0.81511807,110140.0,110130.0,0.18160355]
[1756173591558,0.0377566,110140.0,110130.0,0.18160355]
[1756173591801,0.0377566,110140.0,110130.0,0.35873257]
[1756173592018,1.04416122,110150.0,110110.0,0.22207132]
[1756173592233,0.5509225,110140.0,110120.0,0.01744902]
[1756173592443,0.5509225,110140.0,110120.0,0.20443902]
[1756173592653,0.5246075,110140.0,110130.0,0.17712902]
[1756173593069,0.56174772,110140.0,110130.0,0.17712902]
[1756173593275,0.56494772,110140.0,110120.0,0.02731]
[1756173593452,0.72138772,110140.0,110120.0,0.16064]
[1756173593683,0.0032,110130.0,110120.0,0.15964]
[1756173593890,0.00522,110130.0,110120.0,0.17708902]
[1756173596839,0.03714022,110140.0,110120.0,0.88955782]
[1756173597094,0.00307,110140.0,110130.0,0.00227004]
[1756173597342,0.00518,110140.0,110130.0,0.00227004]
[1756173597557,0.04261309,110140.0,110130.0,0.00227004]
[1756173597797,0.4402,110150.0,110130.0,0.20132261]
[1756173598000,0.47138507,110150.0,110140.0,0.17704902]
[1756173598223,0.47349507,110150.0,110140.0,0.17704902]
[1756173598428,0.45388947,110150.0,110140.0,0.17704902]
[1756173599588,0.73736741,110150.0,110140.0,0.1596]
[1756173599723,1.08653529,110150.0,110140.0,0.1606]
[1756173599924,1.08653529,110150.0,110140.0,0.001]
[1756173600325,1.12271544,110150.0,110140.0,0.001]
[1756173600518,1.12371544,110150.0,110140.0,0.001]
[1756173600715,1.17704325,110150.0,110140.0,0.001]
[1756173600923,1.17604325,110150.0,110140.0,0.001]
[1756173601142,3.41028819,110150.0,110140.0,0.001]
[1756173601387,0.5422244,110130.0,110120.0,0.13612]
[1756173601588,0.5443344,110130.0,110120.0,0.06628]
[1756173601801,0.5474044,110130.0,110120.0,0.08372902]
[1756173602255,0.52162005,110120.0,110110.0,0.00014368]
[1756173602473,0.8874209,110120.0,110110.0,0.00014368]
[1756173602699,0.8874209,110120.0,110110.0,0.15970368]
[1756173602895,0.52680005,110120.0,110110.0,0.00014368]
[1756173603789,0.34518,110120.0,110110.0,0.00014368]
[1756173604213,0.52680005,110120.0,110110.0,0.00014368]
[1756173604461,0.52680005,110120.0,110110.0,0.15970368]
[1756173605044,0.94944952,110120.0,110110.0,0.16070368]
[1756173605279,0.94944952,110120.0,110110.0,0.00114368]
[1756173605850,0.95044952,110120.0,110110.0,0.00114368]
[1756173606062,0.52780005,110120.0,110110.0,0.00114368]
[1756173607030,0.34618,110120.0,110110.0,0.00114368]
[1756173607441,0.34407,110120.0,110110.0,0.00114368]
[1756173607646,0.00618,110120.0,110110.0,0.00114368]
[1756173608540,0.18780005,110120.0,110110.0,0.00114368]
[1756173608964,0.00618,110120.0,110110.0,0.00114368]
[1756173609435,0.00407,110120.0,110110.0,0.02086315]
[1756173609580,0.18780005,110120.0,110110.0,0.1781527]
[1756173609783,0.52780005,110120.0,110110.0,0.1781527]
[1756173610187,0.34618,110120.0,110110.0,0.1781527]
[1756173610574,0.52780005,110120.0,110110.0,0.1781527]
[1756173610775,0.34618,110120.0,110110.0,0.1781527]
[1756173610999,0.341,110120.0,110110.0,0.20295197]
[1756173611198,0.001,110120.0,110110.0,0.80723798]
[1756173611617,0.001,110120.0,110110.0,0.38458851]
[1756173612293,0.34307,110140.0,110120.0,0.01744902]
[1756173612504,0.34307,110140.0,110130.0,0.15152]
[1756173612719,0.52160355,110130.0,110120.0,0.08728902]
[1756173612949,0.52160355,110130.0,110120.0,0.01744902]
[1756173612950,0.94636302,110130.0,110120.0,0.01744902]
[1756173613161,0.18162005,110120.0,110110.0,0.00114368]
[1756173613370,0.26009704,110120.0,110110.0,0.00414368]
[1756173613544,1.02274651,110120.0,110110.0,0.00414368]
[1756173613797,1.04826238,110120.0,110110.0,0.00414368]
[1756173615132,1.0482595,110120.0,110110.0,0.00414368]
[1756173615356,1.02274651,110120.0,110110.0,0.00414368]
[1756173615556,1.18226651,110120.0,110110.0,0.00414368]
[1756173615781,1.18226651,110120.0,110110.0,0.00014368]
[1756173616411,1.19647889,110120.0,110110.0,0.00014368]
[1756173617421,1.19847889,110120.0,110110.0,0.00014368]
[1756173618578,1.21406441,110120.0,110110.0,0.00014368]
[1756173618782,1.22579689,110120.0,110110.0,0.00014368]
[1756173619398,3.43562789,110120.0,110110.0,0.00014368]
[1756173619627,3.46113507,110120.0,110110.0,0.00014368]
[1756173621266,3.45341283,110120.0,110110.0,0.00014368]
[1756173621475,3.43381461,110120.0,110110.0,0.00014368]
[1756173621693,3.54485256,110120.0,110110.0,0.00014368]
[1756173621905,3.52851384,110120.0,110110.0,0.00014368]
[1756173622165,3.56142843,110120.0,110110.0,0.00014368]
[1756173622367,3.53701449,110120.0,110110.0,0.00014368]
[1756173622583,3.56142843,110120.0,110110.0,0.00014368]
[1756173622795,3.56042843,110120.0,110110.0,0.00014368]
[1756173623223,3.56342843,110120.0,110110.0,0.00014368]
[1756173623425,3.53601449,110120.0,110110.0,0.00014368]
[1756173623631,3.53501449,110120.0,110110.0,0.00014368]
[1756173623839,3.53701449,110120.0,110110.0,0.00014368]
[1756173624045,3.54101449,110120.0,110110.0,0.00014368]
[1756173624457,3.53901449,110120.0,110110.0,0.00014368]
[1756173624662,3.53900824,110120.0,110110.0,0.00014368]
[1756173624794,3.54200824,110120.0,110110.0,0.00014368]
[1756173625250,3.55622272,110120.0,110110.0,0.00014368]
[1756173625666,3.55621621,110120.0,110110.0,0.00014368]
[1756173626927,3.55621574,110120.0,110110.0,0.00014368]
[1756173627154,3.58062968,110120.0,110110.0,0.00014368]
[1756173627595,2.81671478,110120.0,110110.0,0.00014368]
[1756173627807,3.19808511,110120.0,110110.0,0.00014368]
[1756173628050,3.38168516,110120.0,110110.0,0.00014368]
[1756173628257,3.22220516,110120.0,110110.0,0.00014368]
[1756173628715,2.79955569,110120.0,110110.0,0.00014368]
[1756173628958,3.38168516,110120.0,110110.0,0.00014368]
[1756173629173,3.22220516,110120.0,110110.0,0.00014368]
[1756173629387,3.38168516,110120.0,110110.0,0.00014368]
[1756173629814,3.38492516,110120.0,110110.0,0.00014368]
[1756173630187,3.03986601,110120.0,110110.0,0.00213368]
[1756173630392,3.01327335,110120.0,110110.0,0.00213368]
[1756173630606,0.79494961,110120.0,110110.0,0.00213368]
[1756173630875,0.782944,110120.0,110110.0,0.00213368]
[1756173631119,0.79893481,110120.0,110110.0,0.00213368]
[1756173631385,0.79693481,110120.0,110110.0,0.00213368]
[1756173631601,0.80017481,110120.0,110110.0,0.00213368]
[1756173631811,0.80117597,110120.0,110110.0,0.00213368]
[1756173632012,0.80217597,110120.0,110110.0,0.00014368]
[1756173632251,3.02492947,110120.0,110110.0,0.00014368]
[1756173632458,3.03979926,110120.0,110110.0,0.00014368]
[1756173633100,3.05938091,110120.0,110110.0,0.00014368]
[1756173633535,3.04516643,110120.0,110110.0,0.00014368]
[1756173633743,3.07148943,110120.0,110110.0,0.00014368]
[1756173634152,3.07149175,110120.0,110110.0,0.00014368]
[1756173634377,3.05852925,110120.0,110110.0,0.00014368]
[1756173634845,2.89908925,110120.0,110110.0,0.00014368]
[1756173635053,2.63587978,110120.0,110110.0,0.00014368]
[1756173635274,2.89584925,110120.0,110110.0,0.00213368]
[1756173635480,3.05752814,110120.0,110110.0,0.00213368]
[1756173636167,2.89808814,110120.0,110110.0,0.00213368]
[1756173636385,3.05230814,110120.0,110110.0,0.00213368]
[1756173636644,2.89286814,110120.0,110110.0,0.00213368]
[1756173636851,3.02432738,110120.0,110110.0,0.00213368]
[1756173637070,3.00474573,110120.0,110110.0,0.00213368]
[1756173637291,3.00574573,110120.0,110110.0,0.00213368]
[1756173637526,3.01722323,110120.0,110110.0,0.00213368]
[1756173637742,2.58309626,110120.0,110110.0,0.00213368]
[1756173637961,3.00474573,110120.0,110110.0,0.00213368]
[1756173638188,2.84530573,110120.0,110110.0,0.00213368]
[1756173638434,0.37226526,110120.0,110110.0,0.00213368]
[1756173638910,0.79689473,110120.0,110110.0,0.00213368]
[1756173639122,0.80013473,110120.0,110110.0,0.00014368]
[1756173639794,0.80013473,110120.0,110110.0,0.00213368]
[1756173640010,0.79487473,110120.0,110110.0,0.00213368]
[1756173640441,0.7968631,110120.0,110110.0,0.00213368]
[1756173640654,0.7948831,110120.0,110110.0,0.00213368]
[1756173641070,0.61524305,110120.0,110110.0,0.00213368]
[1756173641329,3.01519484,110120.0,110110.0,0.00213368]
[1756173641575,3.04440638,110120.0,110110.0,0.00014368]
[1756173642478,3.05751714,110120.0,110110.0,0.00014368]
[1756173644205,3.08193108,110120.0,110110.0,0.00014368]
[1756173644502,3.08293108,110120.0,110110.0,0.00014368]
[1756173644928,3.08193108,110120.0,110110.0,1e-08]
[1756173645346,3.50758055,110120.0,110110.0,1e-08]
[1756173645557,3.85733283,110120.0,110110.0,1e-08]
[1756173645763,3.8705488,110120.0,110110.0,1e-08]
[1756173645993,3.02720986,110120.0,110110.0,1e-08]
[1756173646202,3.25841405,110120.0,110110.0,1e-08]
[1756173646409,3.35841404,110120.0,110110.0,1e-08]
[1756173646820,2.94905405,110120.0,110110.0,1e-08]
[1756173647020,3.10841405,110120.0,110110.0,1e-08]
[1756173647227,3.44841405,110120.0,110110.0,1e-08]
[1756173648024,3.28905405,110120.0,110110.0,1e-08]
[1756173648224,3.44841405,110120.0,110110.0,1e-08]
[1756173648438,3.68985934,110120.0,110110.0,1e-08]
[1756173648977,3.53985934,110120.0,110110.0,1e-08]
[1756173649191,3.38049934,110120.0,110110.0,1e-08]
[1756173649619,3.68785934,110120.0,110110.0,1e-08]
[1756173649824,3.66236245,110120.0,110110.0,1e-08]
[1756173650064,4.20854137,110120.0,110110.0,1e-08]
[1756173650281,4.21054137,110120.0,110110.0,1e-08]
[1756173651071,4.22689121,110120.0,110110.0,1e-08]
[1756173651806,4.17782043,110120.0,110110.0,1e-08]
[1756173652033,4.17982043,110120.0,110110.0,1e-08]
[1756173652239,4.17131061,110120.0,110110.0,1e-08]
[1756173652691,4.18875963,110120.0,110110.0,1e-08]
[1756173652912,0.94435202,110070.0,110060.0,0.00307]
[1756173653134,3.33052266,110070.0,110060.0,0.00506]
[1756173653350,3.33052266,110070.0,110060.0,0.00199]
[1756173653809,3.4415626,110070.0,110060.0,0.00199]
[1756173654013,3.19079731,110070.0,110060.0,0.00506]
[1756173654229,3.35011731,110070.0,110060.0,0.00506]
[1756173654438,3.17120266,110070.0,110060.0,0.00506]
[1756173654674,3.33052266,110070.0,110060.0,0.00506]
[1756173656127,3.33050174,110070.0,110060.0,0.01306]
[1756173656544,3.33050174,110070.0,110060.0,0.00806]
[1756173656711,3.33050174,110070.0,110060.0,0.00506]
[1756173656925,3.36429901,110070.0,110060.0,0.00906]
[1756173657128,3.36429901,110070.0,110060.0,0.00899]
[1756173657291,3.34472057,110070.0,110060.0,0.00899]
[1756173657921,3.34472057,110070.0,110060.0,0.01209]
[1756173658843,2.9220711,110070.0,110060.0,0.01209]
[1756173659055,3.34472057,110070.0,110060.0,0.00899]
[1756173659283,3.34470898,110070.0,110060.0,0.00899]
[1756173659938,3.4557213,110070.0,110060.0,0.00899]
[1756173660152,3.36427601,110070.0,110060.0,0.00899]
[1756173660965,3.36929601,110070.0,110060.0,0.007]
[1756173661418,3.37566572,110070.0,110060.0,0.007]
[1756173662747,0.18175209,110040.0,110030.0,0.09042902]
[1756173662956,0.60440156,110040.0,110030.0,0.02282265]
[1756173664068,0.64059244,110040.0,110030.0,0.02282265]
[1756173664479,0.64059244,110040.0,110030.0,0.02782265]
[1756173664910,0.64059244,110040.0,110030.0,0.03082265]
[1756173665039,0.64059244,110040.0,110030.0,0.01027363]
[1756173665274,1.14199244,110040.0,110030.0,0.01027363]
[1756173665928,3.35476344,110040.0,110030.0,0.00814363]
[1756173666099,3.37173677,110040.0,110030.0,0.00314363]
[1756173666321,2.7897673,110040.0,110030.0,0.00527363]
[1756173666551,3.37169677,110040.0,110030.0,0.00714363]
[1756173666750,2.7868273,110040.0,110030.0,0.00927363]
[1756173666951,3.36667677,110040.0,110030.0,0.00227363]
[1756173667618,3.34970344,110040.0,110030.0,0.00627363]
[1756173667850,0.55794297,110040.0,110030.0,0.00937363]